Cogmind - Beta 11 X6 @@@ ROGUE MODE // 2021.08.10 @ 22:20:23 Player: Olga Result: Destroyed by G-47 Trooper with Particle Gun Performance ------------- Evolutions (0) 0 Regions Visited (4) 800 Robots Destroyed (18) 90 Value Destroyed (640) 640 Prototype IDs (23) 460 Alien Tech Used (0) 0 Bonus (300) 300 TOTAL SCORE: 2290 Bonus ------- Aligned with FarCom 300 Cogmind --------- Core Integrity 0/250 Matter 288/300 Energy 249/250 System Corruption 0% Temperature Cool (9) Movement Walking (120) Location -9/Mines Parts ------- > --- POWER (1) -------- Ion Engine > --- PROPULSION (2) --- Improved Aluminum Leg Improved Aluminum Leg > --- UTILITY (2) ------ Large Storage Unit Targeting Computer > --- WEAPON (2) ------- Light Assault Rifle > --- INVENTORY (15) --- Ion Engine Aluminum Leg Aluminum Leg Aluminum Leg Improved Aluminum Leg Improved Aluminum Leg Large Storage Unit Signal Interpreter Medium Armor Plating Medium Armor Plating Medium Armor Plating Medium Armor Plating Field Lobotomy Kit (5) Peak State ------------ > --- POWER ------------ Ion Engine > --- PROPULSION ------- Improved Aluminum Leg Improved Aluminum Leg > --- UTILITY ---------- Large Storage Unit Targeting Computer > --- WEAPON ----------- Light Assault Rifle Light Assault Rifle > --- INVENTORY -------- Ion Engine Aluminum Leg Aluminum Leg Aluminum Leg Improved Aluminum Leg Improved Aluminum Leg Large Storage Unit Signal Interpreter Medium Armor Plating Medium Armor Plating Medium Armor Plating Medium Armor Plating Light Assault Rifle Light Assault Rifle Field Lobotomy Kit [Rating: 12] Favorites ----------- Power Ion Engine Engine Ion Engine Propulsion Improved Aluminum Leg Leg Improved Aluminum Leg Wheel Compact Wheel Utility Large Storage Unit Storage Large Storage Unit Processor Targeting Computer Weapon Light Assault Rifle Energy Gun Medium Laser Ballistic Gun Light Assault Rifle Ballistic Cannon Light Cannon Build | -11 -10 -10 -10 -9 ------- Run | Scr Mat Min Exi Min Slots Evolved . | . . . . . Power . | . . . . . Propulsion . | . . . . . Utility . | . . . . . Weapon . | . . . . . Parts Attached 17 | . 13 1 . 3 Power 2 | . 1 . . 1 Engine 2 | . 1 . . 1 Core . | . . . . . Reactor . | . . . . . Propulsion 6 | . 6 . . . Treads . | . . . . . Leg 4 | . 4 . . . Wheel 2 | . 2 . . . Hover . | . . . . . Flight . | . . . . . Utility 2 | . 2 . . . Device . | . . . . . Storage 1 | . 1 . . . Processor 1 | . 1 . . . Hackware . | . . . . . Protection . | . . . . . Artifact . | . . . . . Weapon 7 | . 4 1 . 2 Energy Gun . | . . . . . Energy Cannon . | . . . . . Ballistic Gun 6 | . 3 1 . 2 Ballistic Cannon 1 | . 1 . . . Launcher . | . . . . . Special Weapon . | . . . . . Impact Weapon . | . . . . . Slashing Weapon . | . . . . . Piercing Weapon . | . . . . . Special Melee Weapon . | . . . . . Unidentified Prototypes . | . . . . . Parts Lost 7 | . 3 . . 4 Power 1 | . . . . 1 Propulsion 2 | . 2 . . . Utility . | . . . . . Weapon 4 | . 1 . . 3 Highest Loss Streak 2 | . 2 . . 2 Average Slot Usage (%) 96 | . 92 100 100 96 Engine 13 | . 14 14 14 12 Leg 23 | . 15 28 28 28 Wheel 4 | . 10 . . . Storage 14 | . 14 14 14 14 Processor 12 | . 8 14 14 14 Energy Gun 1 | . 3 . . . Ballistic Gun 25 | . 22 28 28 25 Naked Turns . | . . . . . Heaviest Build 29 | 13 29 27 27 27 Greatest Support 26 | 20 26 26 26 26 Greatest Overweight (x) 2 | . 2 1 1 1 Average Overweight (x) . | . . 1 1 . Largest Inventory Capacity 15 | . 15 15 15 15 Average Capacity 14 | . 13 15 15 15 Most Carried 15 | . 15 15 15 15 Average Carried 13 | . 10 14 14 14 Final Capacity 15 | 8 15 15 15 15 Final Carried 15 | 6 15 15 15 13 Class Distribution -------------------- 100% | Mutant Dominant Class ---------------- Mutant | -10/Materials Mutant | -10/Mines Mutant | -10/Exiles Mutant | -9/Mines Resources | -11 -10 -10 -10 -9 ----------- Run | Scr Mat Min Exi Min Matter Collected 564 | 200 180 126 . 58 Remotely . | . . . . . Salvage Created 569 | . 289 105 . 175 Parts 28 | . 20 4 . 4 Haulers Intercepted . | . . . . . Recyclers Shooed . | . . . . . Parts Field Recycled . | . . . . . Retrieved Matter . | . . . . . Parts Self-Destructed . | . . . . . Prevented . | . . . . . Kills | -11 -10 -10 -10 -9 ------- Run | Scr Mat Min Exi Min Combat Hostiles Destroyed 16 | . 10 2 . 4 Guns 14 | . 8 2 . 4 AOE 2 | . 2 . . . Classes Destroyed 3 | . 3 . . . Watcher 2 | . 2 . . . Swarmer 3 | . 3 . . . Grunt 13 | . 7 2 . 4 Best Kill Streak 4 | . 4 2 . 2 Combat Bots Only 3 | . 3 2 . 2 Max Kills in Single Turn 3 | . 3 1 . 1 Gunslinging . | . . . . . Exploded 2 | . 2 . . . Melee . | . . . . . Uniques/NPCs Destroyed . | . . . . . Combat | -11 -10 -10 -10 -9 -------- Run | Scr Mat Min Exi Min Damage Taken 1151 | . 371 157 . 623 Core 260 | . 30 80 . 150 Absorbed by Shields . | . . . . . Core Remaining (%) 100 | 100 . . . . Volleys Fired 82 | . 42 10 . 30 Largest 2 | . 2 2 . 2 Hottest 70 | . 70 40 . 40 Shots Fired 132 | . 64 20 . 48 Gun 112 | . 44 20 . 48 Cannon 20 | . 20 . . . Launcher . | . . . . . Special . | . . . . . Kinetic 131 | . 63 20 . 48 Thermal 1 | . 1 . . . Explosive . | . . . . . Electromagnetic . | . . . . . Robot Hit Streak 11 | . 9 6 . 11 Robot Miss Streak 2 | . 2 1 . 2 Penetration Max . | . . . . . Secondary Targets 5 | . 3 1 . 1 Max Gunslinging Chain 1 | . 1 1 . 1 Shots Hit Robots 88 | . 33 16 . 39 Core Hits 38 | . 18 6 . 14 Critical Kills . | . . . . . Critical Parts Destroyed . | . . . . . Critical Strikes . | . . . . . Melee Attacks . | . . . . . Impact . | . . . . . Slashing . | . . . . . Piercing . | . . . . . Sneak Attacks . | . . . . . Combat Hostiles . | . . . . . Follow-up Attacks . | . . . . . Damage Inflicted 1464 | . 1005 137 . 322 Guns 786 | . 336 128 . 322 Cannons . | . . . . . Explosions 669 | . 669 . . . Melee . | . . . . . Ramming 9 | . . 9 . . Kinetic 786 | . 336 128 . 322 Thermal 558 | . 558 . . . Explosive 111 | . 111 . . . Electromagnetic . | . . . . . Impact . | . . . . . Slashing . | . . . . . Piercing . | . . . . . Highest Corruption . | . . . . . Average Corruption . | . . . . . Corruption Purged . | . . . . . Overload Shots . | . . . . . Overflow Damage 48 | . 48 . . . Projectiles . | . . . . . Explosions 48 | . 48 . . . Melee . | . . . . . Knockbacks . | . . . . . Impact . | . . . . . Kinetic . | . . . . . Secondary . | . . . . . Self-Inflicted Damage 118 | . 118 . . . Shots 2 | . 2 . . . Rammed . | . . . . . Targets Rammed 2 | . . 2 . . Kicked 2 | . . 2 . . Crushed . | . . . . . Highest Temperature 30 | . 30 18 . 24 Average Temperature 9 | . 7 9 . 10 Received Heat Transfer 498 | . 96 90 . 312 Siege Activations . | . . . . . Robots Corrupted . | . . . . . Combat Hostiles . | . . . . . Parts Fried . | . . . . . Impact Corruptions . | . . . . . Robots Melted . | . . . . . Combat Hostiles . | . . . . . Parts Melted . | . . . . . Heat Transferred 300 | . 300 . . . Parts Sabotaged . | . . . . . Parts Stolen . | . . . . . Parts Stripped . | . . . . . Power Chain Reactions . | . . . . . Missiles Intercepted . | . . . . . Alert | -11 -10 -10 -10 -9 ------- Run | Scr Mat Min Exi Min Peak Influence 400 | . 400 167 . 70 Initial 97 | . . 97 . . Average 135 | . 177 109 . 39 Maximum Alert Level 2 | . 2 . . . Low Security (%) 78 | . 60 100 . 100 Level 1 20 | . 38 . . . Level 2 . | . 1 . . . Level 3 . | . . . . . Level 4 . | . . . . . Level 5 . | . . . . . High Security . | . . . . . Max Security . | . . . . . Squads Dispatched 3 | . 3 . . . Investigation 2 | . 2 . . . Extermination . | . . . . . Reinforcement 1 | . 1 . . . Assault . | . . . . . Garrison . | . . . . . Intercept . | . . . . . Construction Impeded . | . . . . . Haulers Reinforced . | . . . . . Active Scanning Responses . | . . . . . Cargo Convoy Interrupts . | . . . . . Stealth | -11 -10 -10 -10 -9 --------- Run | Scr Mat Min Exi Min Distress Signals . | . . . . . Communications Jammed . | . . . . . Distress Signals . | . . . . . Times Spotted 26 | . 18 2 . 6 Peak Tracking Total 3 | . 3 2 . 3 Tactical Retreats . | . . . . . Traps | -11 -10 -10 -10 -9 ------- Run | Scr Mat Min Exi Min Traps Triggered 2 | . 2 . . . Indirectly . | . . . . . Trap Hack Attempts . | . . . . . Triggered . | . . . . . Disarmed . | . . . . . Reprogrammed . | . . . . . Reused . | . . . . . Traps Extracted . | . . . . . Installed . | . . . . . Triggered . | . . . . . Machines | -11 -10 -10 -10 -9 ---------- Run | Scr Mat Min Exi Min Machines Disabled 11 | . 11 . . . Max in Single Turn 7 | . 7 . . . Machines Sabotaged . | . . . . . Garrisons Compromised . | . . . . . Overloaded Fab Kills . | . . . . . Fab Network Shutdowns . | . . . . . Hacking | -11 -10 -10 -10 -9 --------- Run | Scr Mat Min Exi Min Machines Accessed 9 | . 7 1 1 . Terminals 6 | . 5 1 . . Fabricators . | . . . . . Repair Stations . | . . . . . Recycling Units 2 | . 2 . . . Scanalyzers . | . . . . . Garrison Access . | . . . . . Total Hacks 22 | . 18 3 1 . Successful 11 | . 9 1 1 . Failed 11 | . 9 2 . . Catastrophic 3 | . 3 . . . Database Lockouts . | . . . . . Manual 19 | . 18 . 1 . Terminals 19 | . 16 3 . . Fabricators . | . . . . . Repair Stations . | . . . . . Recycling Units 2 | . 2 . . . Scanalyzers . | . . . . . Garrison Access . | . . . . . Terminal Hacks 4 | . 2 1 1 . Branch Access Points 1 | . 1 . . . Recall Investigation 1 | . 1 . . . Zone Layout 1 | . . 1 . . EX-Prototype ID Bank 1 | . . . 1 . Fabricator Hacks . | . . . . . Repair Station Hacks . | . . . . . Recycling Unit Hacks . | . . . . . Scanalyzer . | . . . . . Garrison Access Hacks . | . . . . . Unauthorized Hacks 7 | . 7 . . . Terminals 5 | . 5 . . . Botnet 2 | . 2 . . . Detonate 3 | . 3 . . . Fabricators . | . . . . . Repair Stations . | . . . . . Recycling Units 2 | . 2 . . . Tunnel 2 | . 2 . . . Scanalyzers . | . . . . . Garrison Access . | . . . . . Data Cores Recovered . | . . . . . Used . | . . . . . Hacking Detections 6 | . 5 1 . . Full Trace Events 3 | . 2 1 . . Feedback Events . | . . . . . Feedback Blocked . | . . . . . Robot Schematics Acquired . | . . . . . Robots Built . | . . . . . Matter . | . . . . . Time . | . . . . . Total Robot Build Rating . | . . . . . Part Schematics Acquired . | . . . . . Parts Built . | . . . . . Matter . | . . . . . Time . | . . . . . Total Part Build Rating . | . . . . . Parts Repaired . | . . . . . Time . | . . . . . Parts Recycled . | . . . . . Recycled Matter . | . . . . . Retrieved Matter . | . . . . . Retrieved Components . | . . . . . Parts Scanalyzed . | . . . . . Part Schematics Acquired . | . . . . . Parts Damaged . | . . . . . Bothacking | -11 -10 -10 -10 -9 ------------ Run | Scr Mat Min Exi Min Used RIF Installer . | . . . . . Robots Hacked . | . . . . . Non-combat . | . . . . . Combat . | . . . . . Robot Hacks Applied . | . . . . . Relay Couplers Released . | . . . . . Robots Rewired . | . . . . . Allies Hacked . | . . . . . Hacks Repelled . | . . . . . Allies | -11 -10 -10 -10 -9 -------- Run | Scr Mat Min Exi Min Total Allies . | . . . . . Largest Group . | . . . . . Highest-Rated Group . | . . . . . Highest-Rated Ally . | . . . . . Total Orders . | . . . . . Ally Attacks . | . . . . . Total Damage . | . . . . . Kills . | . . . . . Allies Corrupted . | . . . . . Allies Melted . | . . . . . Intel | -11 -10 -10 -10 -9 ------- Run | Scr Mat Min Exi Min Robot Analysis Total . | . . . . . Derelict Logs Recovered 2 | . . 1 . 1 Drone Launches . | . . . . . Drone Recoveries . | . . . . . Exploration | -11 -10 -10 -10 -9 ------------- Run | Scr Mat Min Exi Min Turns Passed 2070 | . 810 496 539 225 Spaces Moved 1063 | 1 487 232 269 74 Core . | . . . . . Treads . | . . . . . Legs 827 | 1 251 232 269 74 Wheels 236 | . 236 . . . Hover . | . . . . . Flight . | . . . . . Fastest Speed 105 | 120 105 200 200 120 Average Speed 170 | 120 135 200 200 195 Slowest Speed 280 | 120 280 200 200 200 Overloaded Moves . | . . . . . Propulsion Burnouts . | . . . . . Robots Hopped . | . . . . . Cave-ins Triggered . | . . . . . Exploration Rate (%) 38 | 2 71 40 63 15 Regions Visited 4 Branch Regions 3 Pre-discovered Areas 3 | . 2 1 . . Known Exits Taken 1 | . 1 . . . Unknown Exits Taken 3 | 1 . 1 1 . Scrap Searched 2 | . . 1 . 1 Spaces Dug . | . . . . . Terrain Destroyed 172 | . 172 . . . Melee . | . . . . . Projectile . | . . . . . AOE 172 | . 172 . . . Terrain Rammed . | . . . . . Walls Destroyed . | . . . . . Machines Disabled . | . . . . . Actions | -11 -10 -10 -10 -9 --------- Run | Scr Mat Min Exi Min Total 1218 | . 582 247 272 117 Wait 19 | . 9 1 . 9 Move 1059 | . 486 231 268 74 Hop . | . . . . . Pick Up 28 | . 24 1 2 1 Fast Attach . | . . . . . Attach 10 | . 7 . . 3 Detach . | . . . . . Swap 7 | . 6 1 . . Drop 11 | . 8 1 2 . Fire 82 | . 42 10 . 30 Melee . | . . . . . Ram . | . . . . . Kick 2 | . . 2 . . Crush . | . . . . . Escape Stasis . | . . . . . Rewire . | . . . . . Trap . | . . . . . Miscellaneous . | . . . . . Route ------- -11/Scrapyard -10/Materials (discovered 3 exits: [*Mat x2] / *Min) -10/Mines (discovered 3 exits: [*Mat x2] / *Exi) -10/Exiles -9/Mines History --------- Turn | Location | Event 1 | -11/Scrapyard | Discovered new exit (range 0) 1 | -11/Scrapyard | Entered Materials 239 | -10/Materials | Identified exit to Mines 313 | -10/Materials | Build established: Mutant 487 | -10/Materials | Discovered new exit (range 8) 588 | -10/Materials | Discovered new exit (range 7) 811 | -10/Materials | Entered Mines 902 | -10/Mines | Assembled infested the area 941 | -10/Mines | Discovered new exit (range 8) 1053 | -10/Mines | Learned location of Mines (-9) 1161 | -10/Mines | Discovered new exit (range 8) 1299 | -10/Mines | Deemed a non-threat by the Exiles lab entrance 1299 | -10/Mines | Discovered new exit (range 5) 1307 | -10/Mines | Entered Exiles 1355 | -10/Exiles | Met 8R-AWN 1385 | -10/Exiles | Met EX-HEX 1461 | -10/Exiles | Met EX-BIN 1483 | -10/Exiles | Aligned with FarCom system 1485 | -10/Exiles | Given EX-Vault access code 1531 | -10/Exiles | Opened EX-Vault 1544 | -10/Exiles | Found Field Lobotomy Kit 1587 | -10/Exiles | Warned to stay clear of 0b10 Research branches 1645 | -10/Exiles | Met EX-DEC 1824 | -10/Exiles | Discovered new exit (range 14) 1846 | -10/Exiles | Left Exiles lab with Field Lobotomy Kit 1846 | -10/Exiles | Entered Mines 1852 | -9/Mines | Core integrity fell below 50% 1860 | -9/Mines | Met a Derelict bent on vengeance 1958 | -9/Mines | Learned Materials security intel 2046 | -9/Mines | Core integrity fell below 20% 2071 | -9/Mines | Destroyed by G-47 Trooper with Particle Gun Last Messages --------------- 01883_ R-06 Scavenger collects Katana. 01887_ R-06 Scavenger collects Imp. Aluminum Leg. 01958_ Acquired derelict log, extracted data. Data stored: Materials security intel. 01994_ K-01 Serf collects debris. 02018_ Searching scrap... 02018_ Found EM Shotgun. 02018_ Found Heat Sink. 02018_ Found Imp. Light Cannon. 02018_ Found Shotgun. 02018_ Found 16 Matter. 02021_ Acquired 2 matter. 02030_ G-34 Mercenary destroyed. 02030_ Switching to secondary target: G-34 Mercenary. 02039_ Lgt. Assault Rifle destroyed. 02049_ Acquired 12 matter. 02049_ Critical hit (Burn: +37). 02055_ G-34 Mercenary destroyed. 02059_ Acquired 4 matter. 02067_ Lgt. Assault Rifle destroyed. Map ----- +----------------------------------------------------+ | | | | | | | | | | | ?????????????????????????????????????????????????? | | ?????????????????????????????????????????????????? | | ???????????????????????????????????????????####??? | | ????????????????????#####???????????????#### ##?? | | ?????????????????#### ##??############# #?? | | ????????????????## #??# %##? | | ??????????????### #??# ########## !% #? | | ?????????????## #### #????????## %" #? | | ?????????????# #?????????####% ##? | | ?????????????# #### #????????????### #?? | | ?????????????## """ ##??# #??????????????# #?? | | ??????????????# """ #???# #??????????????# ?? | | ??????????????# """ #???# #??????????????####? | | ??????????????# #???# #??????????????????? | | ??????????????## ## #???# #??????????????????? | | ???????????????# ??## ##??# #??????????????????? | | ???????????????#????## ##?# #??????????????????? | | ?????????????????????## ### #??????????????????? | | ??????????????????????## #??????????????????? | | ?????????????##????????## ### #??????????????????? | | ?????????????# ######@#?# #??????????????????? | | ???????# %![%[g[#?# #??????????????????? | | ??????# ####]######?# ############???????? | | ???????????????????# ???????# ss s #????? | | ???????????????????#????????##############???????? | | ?????????????????????????????????????????????????? | | ?????????????????????????????????????????????????? | | ?????????????????????????????????????????????????? | | ?????????????????????????????????????????????????? | | ?????????????????????????????????????????????????? | | ?????????????????????????????????????????????????? | | ?????????????????????????????????????????????????? | | ?????????????????????????????????????????????????? | | ?????????????????????????????????????????????????? | | ?????????????????????????????????????????????????? | | ?????????????????????????????????????????????????? | | ?????????????????????????????????????????????????? | | ?????????????????????????????????????????????????? | | ?????????????????????????????????????????????????? | | ?????????????????????????????????????????????????? | | ?????????????????????????????????????????????????? | | ?????????????????????????????????????????????????? | | ?????????????????????????????????????????????????? | | ?????????????????????????????????????????????????? | | ?????????????????????????????????????????????????? | +----------------------------------------------------+ Best States ------------- Heat Dissipation 25 Energy Generation 10 Energy Capacity 250 Matter Stores 300 Matter Capacity 300 Sight Range 16 Terrain Scan Density 10 Evasion (%) 55 Targeting Accuracy 5 Item Schematics ----------------- None Robot Schematics ------------------ None Fabricated ------------ Nothing Alien Tech Used ----------------- None Achievements -------------- None Challenges ------------ None Game ------ Seed MasterCouplerScythe Manual? 0 Play Time 00:17:31 Cumulative 59.3 hours Start 2021.08.10 @ 22:04:19 End 2021.08.10 @ 22:20:23 Sessions 1 Manual Loads 0 Difficulty Rogue Special Mode None Game No. 73 Rogue 73 Adventurer 0 Explorer 0 Win Type - Total 0 Types 0/0/0/0/0/0/0/0/0 Lore% 48 Gallery% 43 Achievement% 37 Wizard Run 0 Options --------- ASCII 1 Keyboard 0 Movement Vi Keybinds 0 Fullscreen 2 Font 18/SmallcapsGlow Map View 76x50 Tactical HUD 1 Map Filters NONE Filters NONE Steam 1 RUN: d6dbe9cc-f455-4b57-b216-68a61085e7b3